fUSD/lending_fUSD_20260307
["ID","MTS","AMOUNT","RATE_DAILY","PERIOD"]
[407929404,1772922653236,-2000.0,0.000309,2]
[407929405,1772922653245,-506.4,0.000309,30]
[407929406,1772922653255,-258.0,0.000309,30]
[407929407,1772922653269,-3734.61,0.0003092,30]
[407929408,1772922653278,-2294.5085,0.00030959,7]
[407929409,1772922653288,-2294.5085,0.00030959,7]
[407929410,1772922653298,-2294.5085,0.00030959,7]
[407929411,1772922653312,-2294.5085,0.00030959,7]
[407929412,1772922653326,-2294.5085,0.00030959,7]
[407929413,1772922653339,-2294.5085,0.00030959,7]
[407929414,1772922653349,-2294.5085,0.00030959,7]
[407929415,1772922653359,-2294.5085,0.00030959,7]
[407929416,1772922653372,-2294.5085,0.00030959,7]
[407929417,1772922653384,-2294.5085,0.00030959,7]
[407929418,1772922653394,-2294.5085,0.00030959,7]
[407929419,1772922653404,-2294.5085,0.00030959,7]
[407929420,1772922653414,-2294.5085,0.00030959,7]
[407929421,1772922653423,-2294.5085,0.00030959,7]
[407929422,1772922653432,-2294.5085,0.00030959,7]
[407929423,1772922653442,-2294.5085,0.00030959,7]
[407929424,1772922653451,-2294.5085,0.00030959,7]
[407929425,1772922653460,-2294.5085,0.00030959,7]
[407929426,1772922653469,-2294.5085,0.00030959,7]
[407929427,1772922653478,-2294.5102528,0.00030959,7]
[407929428,1772922653487,-2533.09664115,0.00031,30]
[407929429,1772922653496,-212.3,0.00031,4]
[407929430,1772922653505,-150.0,0.00031,34]
[407929431,1772922653515,-1800000.0,0.00031,30]
[407929432,1772922653524,-813.0,0.00031,2]
[407929433,1772922653534,-2000.0,0.000311,2]
[407929434,1772922653543,-1000.0,0.00031234,14]
[407929435,1772922653552,-2200.0,0.00031234,14]
[407929436,1772922653562,-2200.0,0.00031234,14]
[407929437,1772922653571,-151.5,0.00031258,2]
[407929438,1772922653581,-2376.35408644,0.00031305,2]
[407929439,1772922653591,-150.0,0.0003147,2]
[407929440,1772922653600,-150.0,0.000315,2]
[407929441,1772922653611,-1109.0,0.00031861,5]
[407929442,1772922653622,-602.57,0.000319,7]
[407929443,1772922653633,-4774.43,0.000319,7]
[407929444,1772922653643,-1279.0,0.00031952,2]
[407929445,1772922653653,-922.0,0.00031952,2]
[407929446,1772922653662,-1212.0,0.00031952,2]
[407929447,1772922653675,-303.93,0.00031952,2]
[407929448,1772922653684,-1341.0,0.00031952,2]
[407929449,1772922653694,-152.0,0.00031992,4]
[407929450,1772922653705,-151.0,0.00032,2]
[407929451,1772922653715,-150.0,0.00032,37]
[407929452,1772922653725,-503.0,0.00032207,16]
[407929453,1772922653735,-899.52564022,0.000323,2]
[407929454,1772922653745,-401.09,0.00032646,34]
[407929455,1772922653754,-155.0,0.00032765,2]
[407929456,1772922653764,-4859.87116401,0.000328,2]
[407929457,1772922653866,-214.0,0.0003286,30]
[407929458,1772922653876,-1731.46967412,0.0003287,4]
[407929459,1772922653885,-2073.12457826,0.00032876,32]
[407929460,1772922653894,-483.25779421,0.00032876,2]
[407929461,1772922653903,-500.0,0.00032876,2]
[407929462,1772922653912,-573.53891891,0.00032876,2]
[407929463,1772922653922,-394.40603652,0.00032876,2]
[407929464,1772922653931,-500.0,0.00032876,2]
[407929465,1772922653940,-156.42159876,0.00032876,2]
[407929466,1772922653949,-451.33675995,0.00032876,2]
[407929467,1772922653958,-500.0,0.00032876,2]
[407929468,1772922653967,-500.0,0.00032876,2]
[407929469,1772922653977,-500.0,0.00032876,2]
[407929470,1772922653986,-500.0,0.00032876,2]
[407929471,1772922653995,-421.41922018,0.00032876,2]
[407929472,1772922654005,-414.88446322,0.00032876,2]
[407929473,1772922654014,-500.0,0.00032876,2]
[407929474,1772922654025,-410.74495198,0.00032876,2]
[407929475,1772922654035,-500.0,0.00032876,2]
[407929476,1772922654044,-500.0,0.00032876,2]
[407929477,1772922654053,-2000.0,0.00032877,2]
[407929478,1772922654063,-269.917619,0.00032877,2]
[407929479,1772922654073,-152.357071,0.00032877,7]
[407929480,1772922654083,-152.357071,0.00032877,7]
[407929481,1772922654094,-152.357071,0.00032877,7]
[407929482,1772922654103,-152.357071,0.00032877,7]
[407929483,1772922654114,-152.357071,0.00032877,7]
[407929484,1772922654124,-152.357071,0.00032877,7]
[407929485,1772922654135,-152.357071,0.00032877,7]
[407929486,1772922654146,-152.357071,0.00032877,7]
[407929487,1772922654156,-152.357071,0.00032877,7]
[407929488,1772922654165,-152.357071,0.00032877,7]
[407929489,1772922654175,-152.357071,0.00032877,7]
[407929490,1772922654187,-152.357071,0.00032877,7]
[407929491,1772922654196,-152.357071,0.00032877,7]
[407929492,1772922654205,-152.357071,0.00032877,7]
[407929493,1772922654214,-152.357071,0.00032877,7]
[407929494,1772922654223,-152.357071,0.00032877,7]
[407929495,1772922654233,-152.357071,0.00032877,7]
[407929496,1772922654242,-152.357071,0.00032877,7]
[407929497,1772922654252,-152.357071,0.00032877,7]
[407929498,1772922654267,-152.357062,0.00032877,7]
[407929499,1772922654278,-346.8,0.00032877,2]
[407929500,1772922654289,-570.39,0.00032877,2]
[407929501,1772922654302,-500.0,0.00032877,2]
[407929502,1772922654313,-500.0,0.00032877,2]
[407929503,1772922654324,-500.0,0.00032877,2]
[407929504,1772922654335,-500.0,0.00032877,2]
[407929505,1772922654345,-500.0,0.00032877,2]
[407929506,1772922654355,-500.0,0.00032877,2]
[407929507,1772922654364,-379.73074688,0.00032877,2]
[407929508,1772922654373,-1000.0,0.00032878,14]
[407929509,1772922654382,-2200.0,0.00032878,14]
[407929510,1772922654392,-2200.0,0.00032878,14]
[407929511,1772922654401,-1515.05,0.000329,30]
[407929512,1772922654410,-400.0,0.00032914,30]
[407929513,1772922654419,-365.03384823,0.00032914,30]
[407929514,1772922654429,-154.51857326,0.00033,2]
[407929515,1772922654438,-150.0,0.00033,40]
[407929516,1772922654447,-160.0,0.00033,10]
[407929517,1772922654456,-51608.87947887,0.00033,2]
[407929518,1772922654465,-26538.36425627,0.00033,2]
[407929519,1772922654474,-563.238527,0.00033,14]
[407929520,1772922654483,-150.0,0.00033043,2]
[407929521,1772922654492,-151.5,0.0003306,2]
[407929522,1772922654501,-152.0,0.00033099,5]
[407929523,1772922654510,-151.5,0.00033335,2]
[407929524,1772922654519,-2000.0,0.00033425,2]
[407929525,1772922654528,-279.9045709,0.00033425,2]
[407929526,1772922654537,-1109.0,0.00033455,5]
[407929527,1772922654546,-1218.91614929,0.000335,2]
[407929528,1772922654554,-602.57,0.000338,14]
[407929529,1772922654563,-4774.43,0.000338,14]
[407929530,1772922654573,-151.5,0.00033854,2]
[407929531,1772922654582,-3734.61,0.00033855,30]
[407929532,1772922654592,-2000.0,0.00033973,2]
[407929533,1772922654601,-290.26104003,0.00033973,2]
[407929534,1772922654612,-2375.72311032,0.00034,67]
[407929535,1772922654621,-150.0,0.00034,43]
[407929536,1772922654630,-3907.30641037,0.00034,120]
[407929537,1772922654639,-151.5,0.00034,2]
[407929538,1772922654649,-152.0,0.00034205,6]
[407929539,1772922654658,-503.0,0.00034379,18]
[407929540,1772922654668,-1742.15622428,0.0003449,2]
[407929541,1772922654677,-2000.0,0.00034521,2]
[407929542,1772922654686,-301.00069851,0.00034521,2]
[407929543,1772922654695,-1000.0,0.00034522,14]
[407929544,1772922654704,-2200.0,0.00034522,14]
[407929545,1772922654713,-2200.0,0.00034522,14]
[407929546,1772922654722,-196.03,0.00034639,60]
[407929547,1772922654731,-150.0,0.00034696,2]
[407929548,1772922654740,-582.36,0.00034712,30]
[407929549,1772922654749,-1023.68,0.00034712,30]
[407929550,1772922654759,-1500.0,0.00034795,2]
[407929551,1772922654769,-2000.0,0.000348,2]
[407929552,1772922654778,-214.0,0.0003488,30]
[407929553,1772922654788,-1436.70614573,0.000349,120]
[407929554,1772922654798,-680.83,0.000349,14]
[407929555,1772922654808,-150.0,0.000349,3]
[407929556,1772922654817,-1279.0,0.00034952,2]
[407929557,1772922654827,-922.0,0.00034952,2]
[407929558,1772922654836,-1212.0,0.00034952,2]
[407929559,1772922654845,-1341.0,0.00034952,2]
[407929560,1772922654855,-151.0,0.00035,2]
[407929561,1772922654864,-151.0,0.00035,4]
[407929562,1772922654873,-795.86287598,0.00035,2]
[407929563,1772922654883,-10000.0,0.00035,7]
[407929564,1772922654891,-1929.42905612,0.00035,2]
[407929565,1772922654900,-804.81713584,0.00035,2]
[407929566,1772922654909,-2899.42796426,0.00035,50]
[407929567,1772922654919,-150.0,0.00035,46]
[407929568,1772922654928,-173.60720704,0.00035,30]
[407929569,1772922654937,-20000.0,0.00035,7]
[407929570,1772922654946,-241.8,0.00035,2]
[407929571,1772922654955,-300.0,0.00035,30]
[407929572,1772922654964,-331.0,0.00035,30]
[407929573,1772922654973,-163.0,0.00035,14]
[407929574,1772922654982,-2157.80370022,0.00035,7]
[407929575,1772922654991,-503.4917169,0.00035,30]
[407929576,1772922654999,-490.20403515,0.00035,30]
[407929577,1772922655008,-600.0,0.00035,120]
[407929578,1772922655017,-3017.42881577,0.00035,14]
[407929579,1772922655027,-20481.42823552,0.00035,14]
[407929580,1772922655035,-184.0201464,0.00035068,10]
[407929581,1772922655045,-2000.0,0.00035069,2]
[407929582,1772922655054,-312.13772435,0.00035069,2]
[407929583,1772922655063,-1109.0,0.00035127,5]
[407929584,1772922655072,-126475.7439,0.0003522,30]
[407929585,1772922655082,-2500.0,0.000353,14]
[407929586,1772922655091,-152.0,0.00035311,7]
[407929587,1772922655101,-400.0,0.000354,120]
[407929588,1772922655110,-151.5,0.00035469,2]
[407929589,1772922655120,-400.0,0.000355,120]
[407929590,1772922655131,-602.57,0.000355,14]
[407929591,1772922655142,-4774.43,0.000355,14]
[407929592,1772922655151,-522.35,0.000356,120]
[407929593,1772922655161,-4459.62404346,0.0003561,2]
[407929594,1772922655170,-50074.89952205,0.0003561,2]
[407929595,1772922655179,-158227.70038884,0.0003561,2]
[407929596,1772922655188,-500.0,0.00035616,60]
[407929597,1772922655197,-500.0,0.00035616,60]
[407929598,1772922655207,-500.0,0.00035616,60]
[407929599,1772922655217,-500.0,0.00035616,60]
[407929600,1772922655226,-2154.14848279,0.00035616,7]
[407929601,1772922655236,-2154.14848279,0.00035616,7]
[407929602,1772922655246,-2154.14848279,0.00035616,7]
[407929603,1772922655259,-2154.14848279,0.00035616,7]
[407929604,1772922655271,-2154.14848279,0.00035616,7]
[407929605,1772922655282,-2154.14848279,0.00035616,7]
[407929606,1772922655293,-2154.14848279,0.00035616,7]
[407929607,1772922655304,-2154.14848279,0.00035616,7]
[407929608,1772922655314,-2154.14848279,0.00035616,7]
[407929609,1772922655323,-2154.14848279,0.00035616,7]
[407929610,1772922655333,-2154.14848279,0.00035616,7]
[407929611,1772922655342,-2154.14848279,0.00035616,7]
[407929612,1772922655352,-2154.14848279,0.00035616,7]
[407929613,1772922655361,-2154.14848279,0.00035616,7]
[407929614,1772922655370,-2154.14848279,0.00035616,7]
[407929615,1772922655381,-2154.14848279,0.00035616,7]
[407929616,1772922655391,-2154.14848279,0.00035616,7]
[407929617,1772922655402,-2154.14848279,0.00035616,7]
[407929618,1772922655412,-2154.14848279,0.00035616,7]
[407929619,1772922655421,-2154.14848279,0.00035616,7]
[407929620,1772922655430,-2154.14848279,0.00035616,7]
[407929621,1772922655439,-2154.14848279,0.00035616,7]
[407929622,1772922655449,-2154.14848279,0.00035616,7]
[407929623,1772922655458,-2154.14848279,0.00035616,7]
[407929624,1772922655467,-2154.14848279,0.00035616,7]
[407929625,1772922655477,-2154.14848279,0.00035616,7]
[407929626,1772922655486,-2154.14848279,0.00035616,7]
[407929627,1772922655495,-2154.14848279,0.00035616,7]
[407929628,1772922655503,-2154.14848279,0.00035616,7]
[407929629,1772922655513,-2154.14848279,0.00035616,7]
[407929630,1772922655522,-2154.14848279,0.00035616,7]
[407929631,1772922655531,-2154.14848279,0.00035616,7]
[407929632,1772922655540,-2154.14848279,0.00035616,7]
[407929633,1772922655550,-2154.14848279,0.00035616,7]
[407929634,1772922655559,-2154.14848279,0.00035616,7]
[407929635,1772922655568,-2154.14848279,0.00035616,7]
[407929636,1772922655577,-2154.14848279,0.00035616,7]
[407929637,1772922655587,-2154.14848279,0.00035616,7]
[407929638,1772922655595,-2154.14848279,0.00035616,7]
[407929639,1772922655605,-2154.14848279,0.00035616,7]
[407929640,1772922655613,-2154.14848279,0.00035616,7]
[407929641,1772922655622,-2154.14848279,0.00035616,7]
[407929642,1772922655632,-2154.14848279,0.00035616,7]
[407929643,1772922655641,-2154.14848279,0.00035616,7]
[407929644,1772922655650,-2154.14848279,0.00035616,7]
[407929645,1772922655659,-2154.14848279,0.00035616,7]
[407929646,1772922655669,-2154.14848279,0.00035616,7]
[407929647,1772922655678,-2154.14848279,0.00035616,7]
[407929648,1772922655688,-2154.14848279,0.00035616,7]
[407929649,1772922655697,-2154.14848279,0.00035616,7]
[407929650,1772922655706,-2154.14848279,0.00035616,7]
[407929651,1772922655715,-2154.14848279,0.00035616,7]
[407929652,1772922655724,-2154.14848279,0.00035616,7]
[407929653,1772922655734,-2154.14848279,0.00035616,7]
[407929654,1772922655743,-2154.14848279,0.00035616,7]
[407929655,1772922655752,-2154.14848279,0.00035616,7]
[407929656,1772922655761,-2154.14848279,0.00035616,7]
[407929657,1772922655771,-2154.14848279,0.00035616,7]
[407929658,1772922655781,-2154.14848279,0.00035616,7]
[407929659,1772922655791,-2154.14848279,0.00035616,7]
[407929660,1772922655801,-2154.14848279,0.00035616,7]
[407929661,1772922655810,-2154.14848279,0.00035616,7]
[407929662,1772922655819,-2154.14848279,0.00035616,7]
[407929663,1772922655828,-2154.14848279,0.00035616,7]
[407929664,1772922655838,-2154.14848279,0.00035616,7]
[407929665,1772922655848,-2154.14848279,0.00035616,7]
[407929666,1772922655857,-2154.14848279,0.00035616,7]
[407929667,1772922655867,-2154.14848279,0.00035616,7]
[407929668,1772922655876,-2154.14848279,0.00035616,7]
[407929669,1772922655885,-2154.14848279,0.00035616,7]
[407929670,1772922655895,-2154.14848279,0.00035616,7]
[407929671,1772922655904,-2154.14848279,0.00035616,7]
[407929672,1772922655913,-2261.85590692,0.00035616,7]
[407929673,1772922655922,-2261.85590692,0.00035616,7]
[407929674,1772922655932,-2261.85590692,0.00035616,7]
[407929675,1772922655941,-2111.06551312,0.00035616,7]
[407929676,1772922655950,-2111.06551312,0.00035616,7]
[407929677,1772922655959,-2111.06551312,0.00035616,7]
[407929678,1772922655969,-2111.06551312,0.00035616,7]
[407929679,1772922655977,-2111.06551312,0.00035616,7]
[407929680,1772922655987,-2111.06551312,0.00035616,7]
[407929681,1772922655996,-2261.85590692,0.00035616,7]
[407929682,1772922656005,-2111.06551312,0.00035616,7]
[407929683,1772922656014,-2261.85590692,0.00035616,7]
[407929684,1772922656023,-2111.06551312,0.00035616,7]
[407929685,1772922656032,-2261.85590692,0.00035616,7]
[407929686,1772922656042,-2111.06551312,0.00035616,7]
[407929687,1772922656053,-2261.85590692,0.00035616,7]
[407929688,1772922656063,-2111.06551312,0.00035616,7]
[407929689,1772922656072,-2111.06551312,0.00035616,7]
[407929690,1772922656081,-2111.06551312,0.00035616,7]
[407929691,1772922656090,-2111.06551312,0.00035616,7]
[407929692,1772922656099,-2111.06551312,0.00035616,7]
[407929693,1772922656108,-2111.06551312,0.00035616,7]
[407929694,1772922656117,-2111.06551312,0.00035616,7]
[407929695,1772922656126,-2111.06551312,0.00035616,7]
[407929696,1772922656135,-2261.85590692,0.00035616,7]
[407929697,1772922656145,-2111.06551312,0.00035616,7]
[407929698,1772922656155,-2111.06551312,0.00035616,7]
[407929699,1772922656167,-2111.06551312,0.00035616,7]
[407929700,1772922656176,-284.89588156,0.00035616,2]
[407929701,1772922656187,-151.0,0.00035616,7]
[407929702,1772922656196,-161.713252,0.00035616,7]
[407929703,1772922656205,-570.39,0.00035616,2]
[407929704,1772922656215,-2045.50626866,0.00035617,2]
[407929705,1772922656225,-357.56165382,0.00035617,2]
[407929706,1772922656235,-2000.0,0.000358,2]
[407929707,1772922656245,-2000.0,0.000358,2]
[407929708,1772922656256,-2000.0,0.000358,2]
[407929709,1772922656269,-2000.0,0.000359,2]
[407929710,1772922656282,-2000.0,0.000359,2]
[407929711,1772922656292,-2000.0,0.000359,2]
[407929712,1772922656304,-2000.0,0.000359,2]
[407929713,1772922656315,-2000.0,0.000359,2]
[407929714,1772922656327,-2000.0,0.000359,2]
[407929715,1772922656339,-2000.0,0.000359,2]
[407929716,1772922656351,-2000.0,0.000359,2]
[407929717,1772922656361,-2000.0,0.000359,2]
[407929718,1772922656371,-2000.0,0.000359,2]
[407929719,1772922656382,-2000.0,0.000359,2]
[407929720,1772922656393,-2369.63411553,0.00036,10]
[407929721,1772922656403,-157122.63869624,0.00036,2]
[407929722,1772922656413,-749.75781496,0.00036,2]
[407929723,1772922656423,-150.0,0.00036,49]
[407929724,1772922656432,-151.0,0.00036,14]
[407929725,1772922656442,-1576.63,0.00036,2]
[407929726,1772922656453,-1373.28849407,0.00036,2]
[407929727,1772922656463,-1513.97,0.00036016,2]
[407929728,1772922656472,-151.5,0.00036071,2]
[407929729,1772922656482,-151.5,0.00036102,2]
[407929730,1772922656491,-1138.19221961,0.00036166,14]
[407929731,1772922656501,-2200.0,0.00036166,14]
[407929732,1772922656510,-2200.0,0.00036166,14]
[407929733,1772922656520,-15035.03180011,0.0003621,120]
[407929734,1772922656530,-1252.51,0.00036399,10]
[407929735,1772922656539,-150.1,0.00036401,2]
[407929736,1772922656548,-150.1,0.00036401,2]
[407929737,1772922656558,-150.1,0.00036401,2]
[407929738,1772922656567,-150.1,0.00036401,2]
[407929739,1772922656577,-150.1,0.00036401,2]
[407929740,1772922656587,-150.1,0.00036401,2]
[407929741,1772922656597,-150.1,0.00036401,2]
[407929742,1772922656607,-150.1,0.00036401,2]
[407929743,1772922656617,-150.1,0.00036401,2]
[407929744,1772922656628,-150.1,0.00036401,2]
[407929745,1772922656639,-150.1,0.00036401,2]
[407929746,1772922656649,-150.1,0.00036401,2]
[407929747,1772922656659,-172.48984547,0.00036401,2]
[407929748,1772922656668,-150.1,0.00036401,2]
[407929749,1772922656677,-150.1,0.00036401,2]
[407929750,1772922656686,-150.1,0.00036401,2]
[407929751,1772922656695,-150.1,0.00036401,2]
[407929752,1772922656705,-150.1,0.00036401,2]
[407929753,1772922656715,-150.1,0.00036401,2]
[407929754,1772922656725,-150.1,0.00036401,2]
[407929755,1772922656735,-151.5,0.00036402,2]
[407929756,1772922656746,-152.0,0.00036417,8]
[407929757,1772922656757,-150.0,0.0003643,2]
[407929758,1772922656767,-1405.42,0.00036485,10]
[407929759,1772922656776,-36962.5304746,0.000365,19]
[407929760,1772922656788,-36983.0,0.000365,120]
[407929761,1772922656803,-151.5,0.00036505,2]
[407929762,1772922656814,-503.0,0.00036552,20]
[407929763,1772922656824,-4869.20679927,0.000366,19]
[407929764,1772922656834,-4869.20679926,0.000366,19]
[407929765,1772922656844,-4869.20679926,0.000366,19]
[407929766,1772922656853,-4869.20679926,0.000366,19]
[407929767,1772922656863,-1252.52,0.00036626,10]
[407929768,1772922656875,-1690.48850256,0.000367,120]
[407929769,1772922656895,-3734.61,0.00036791,30]
[407929770,1772922656907,-1620.99446961,0.000368,2]
[407929771,1772922656917,-1109.0,0.00036884,5]
[407929772,1772922656926,-214.0,0.0003689,30]
[407929773,1772922656936,-1801.94985933,0.000369,120]
[407929774,1772922656945,-602.57,0.00037,14]
[407929775,1772922656954,-4774.43,0.00037,14]
[407929776,1772922656964,-3000.0,0.00037,30]
[407929777,1772922656973,-3000.0,0.00037,30]
[407929778,1772922656983,-365.0,0.00037,2]
[407929779,1772922656993,-166.76123145,0.00037,2]
[407929780,1772922657003,-364.64104526,0.00037,3]
[407929781,1772922657012,-150.0,0.00037,52]
[407929782,1772922657022,-151.5,0.00037136,2]
[407929783,1772922657032,-25000.0,0.0003721,120]
[407929784,1772922657041,-1000.0,0.00037279,2]
[407929785,1772922657051,-1000.0,0.00037279,2]
[407929786,1772922657061,-1024.36340836,0.00037279,2]
[407929787,1772922657071,-1975.63659164,0.00037279,2]
[407929788,1772922657080,-152.0,0.00037524,9]
[407929789,1772922657090,-4361.44944221,0.0003759,2]
[407929790,1772922657099,-1444.0,0.00037753,120]
[407929791,1772922657109,-1116.0,0.000378,120]
[407929792,1772922657119,-1644.22696246,0.0003781,14]
[407929793,1772922657128,-1632.24560854,0.0003781,14]
[407929794,1772922657138,-203.48342048,0.0003788,2]
[407929795,1772922657149,-2500.0,0.0003788,120]
[407929796,1772922657159,-1279.0,0.00037952,2]
[407929797,1772922657169,-922.0,0.00037952,2]
[407929798,1772922657178,-1212.0,0.00037952,2]
[407929799,1772922657188,-186.922,0.00037952,2]
[407929800,1772922657198,-151.5,0.00037957,2]
[407929801,1772922657208,-546.06874641,0.00038,120]
[407929802,1772922657218,-3000.0,0.00038,30]
[407929803,1772922657227,-3000.0,0.00038,30]
[407929804,1772922657238,-500.0,0.00038,2]
[407929805,1772922657248,-3054.55073842,0.00038,120]
[407929806,1772922657262,-409.586,0.00038,120]
[407929807,1772922657273,-175.0,0.00038,120]
[407929808,1772922657282,-223.0,0.00038,55]
[407929809,1772922657292,-151.5,0.00038083,2]
[407929810,1772922657303,-1459.55011305,0.000381,33]
[407929811,1772922657313,-846.0,0.00038138,11]
[407929812,1772922657323,-25000.0,0.0003821,120]
[407929813,1772922657334,-150.0,0.00038252,2]
[407929814,1772922657344,-3276.79425103,0.00038356,120]
[407929815,1772922657354,-459.12169848,0.00038356,7]
[407929816,1772922657363,-10716.24,0.00038356,120]
[407929817,1772922657373,-500.0,0.00038356,120]
[407929818,1772922657383,-500.0,0.00038356,120]
[407929819,1772922657393,-500.0,0.00038356,120]
[407929820,1772922657402,-500.0,0.00038356,120]
[407929821,1772922657412,-500.0,0.00038356,120]
[407929822,1772922657421,-500.0,0.00038356,120]
[407929823,1772922657431,-150.0,0.00038356,120]
[407929824,1772922657440,-150.0,0.00038356,120]
[407929825,1772922657450,-500.0,0.00038356,120]
[407929826,1772922657459,-500.0,0.00038356,120]
[407929827,1772922657471,-500.0,0.00038356,120]
[407929828,1772922657480,-500.0,0.00038356,120]
[407929829,1772922657490,-500.0,0.00038356,120]
[407929830,1772922657500,-175.794546,0.00038356,120]
[407929831,1772922657512,-400.78134,0.00038356,120]
[407929832,1772922657522,-400.78134,0.00038356,120]
[407929833,1772922657533,-400.78134,0.00038356,120]
[407929834,1772922657544,-400.78134,0.00038356,120]
[407929835,1772922657554,-400.78134,0.00038356,120]
[407929836,1772922657565,-400.78134,0.00038356,120]
[407929837,1772922657574,-400.78134,0.00038356,120]
[407929838,1772922657584,-400.78134,0.00038356,120]
[407929839,1772922657593,-400.78134,0.00038356,120]
[407929840,1772922657603,-400.78134,0.00038356,120]
[407929841,1772922657613,-400.78134,0.00038356,120]
[407929842,1772922657624,-400.78134,0.00038356,120]
[407929843,1772922657633,-400.78134,0.00038356,120]
[407929844,1772922657643,-400.78134,0.00038356,120]
[407929845,1772922657653,-400.78134,0.00038356,120]
[407929846,1772922657662,-400.78134,0.00038356,120]
[407929847,1772922657672,-400.78134,0.00038356,120]
[407929848,1772922657682,-400.78134,0.00038356,120]
[407929849,1772922657691,-400.78134,0.00038356,120]
[407929850,1772922657701,-400.78134,0.00038356,120]
[407929851,1772922657711,-587.0,0.000385,30]
[407929852,1772922657721,-2000.0,0.000385,2]
[407929853,1772922657731,-152.0,0.0003863,10]
[407929854,1772922657741,-503.0,0.00038724,22]
[407929855,1772922657751,-1109.0,0.00038728,5]
[407929856,1772922657761,-436.77,0.00038831,120]
[407929857,1772922657771,-767.76,0.00038831,120]
[407929858,1772922657781,-196.03,0.00038853,90]
[407929859,1772922657792,-179.51762784,0.0003888,7]
[407929860,1772922657802,-1000.0,0.000389,120]
[407929861,1772922657812,-10000.0,0.000389,120]
[407929862,1772922657821,-10716.24,0.00038904,120]
[407929863,1772922657831,-214.0,0.0003891,30]
[407929864,1772922657843,-1536.75364475,0.0003899,10]
[407929865,1772922657853,-6000.0,0.0003899,120]
[407929866,1772922657863,-602.57,0.00039,14]
[407929867,1772922657874,-4774.43,0.00039,14]
[407929868,1772922657884,-3000.0,0.00039,30]
[407929869,1772922657894,-3000.0,0.00039,30]
[407929870,1772922657904,-3112.80734265,0.00039,120]
[407929871,1772922657915,-2268.060615,0.00039,120]
[407929872,1772922657927,-70030.88217246,0.00039,14]
[407929873,1772922657938,-13993.3477274,0.00039,2]
[407929874,1772922657948,-2000.0,0.00039,30]
[407929875,1772922657958,-25000.0,0.0003921,120]
[407929876,1772922657968,-1231.0,0.00039279,120]
[407929877,1772922657978,-10716.24,0.00039452,120]
[407929878,1772922657988,-500.0,0.00039726,120]
[407929879,1772922657998,-500.0,0.00039726,120]
[407929880,1772922658008,-500.0,0.00039726,120]
[407929881,1772922658018,-3734.61,0.00039726,30]
[407929882,1772922658029,-152.0,0.00039736,11]
[407929883,1772922658039,-1981.82809295,0.0003979,30]
[407929884,1772922658049,-197.76793563,0.0003989,2]
[407929885,1772922658061,-10000.0,0.000399,120]
[407929886,1772922658072,-151.5,0.00039985,2]
[407929887,1772922658082,-1752.83,0.0004,120]
[407929888,1772922658092,-250.0,0.0004,7]
[407929889,1772922658102,-152.0,0.0004,120]
[407929890,1772922658112,-3213.45766502,0.0004,30]
[407929891,1772922658122,-3000.0,0.0004,30]
[407929892,1772922658131,-3000.0,0.0004,30]
[407929893,1772922658143,-165.64649591,0.0004,120]
[407929894,1772922658154,-160.0,0.0004,14]
[407929895,1772922658165,-7477.73,0.0004,14]
[407929896,1772922658176,-1000.0,0.0004,2]
[407929897,1772922658187,-1999.99,0.0004,120]
[407929898,1772922658204,-8215.65228862,0.0004,120]
[407929899,1772922658216,-3164.91617366,0.0004,120]
[407929900,1772922658227,-1442.46362065,0.0004,120]
[407929901,1772922658239,-1458.52854575,0.0004,120]
[407929902,1772922658251,-1250.2045574,0.0004,120]
[407929903,1772922658268,-1829.0,0.0004,120]